fUSD/lending_fUSD_20250623
["ID","MTS","AMOUNT","RATE_DAILY","PERIOD"]
[367049445,1750636840857,158.75,0.00013699,2]
[367049451,1750637060891,10000.0,0.00024658,120]
[367049452,1750637070687,10000.0,0.00024658,120]
[367049453,1750637079657,10000.0,0.00024658,120]
[367049454,1750637088405,10000.0,0.00024658,120]
[367049455,1750637099222,10000.0,0.00024658,120]
[367049627,1750637432156,-203.0,0.00029495,2]
[367049628,1750637432166,-179.85661038,0.00030395,2]
[367049629,1750637432176,-168.0,0.00031479,2]
[367049630,1750637432186,-500.0,0.00031479,2]
[367049632,1750637432196,-445.95312218,0.00031479,2]
[367049633,1750637432206,-203.0,0.00031528,5]
[367049634,1750637432216,-834.42866044,0.00031854,2]
[367049635,1750637432226,-156.47,0.00033214,2]
[367049636,1750637432235,-558.649,0.00033283,2]
[367049637,1750637432246,-323.54,0.00033415,30]
[367049638,1750637432256,-187.77,0.00033416,2]
[367049639,1750637432266,-158.39,0.000335,31]
[367049640,1750637432284,-1200.0,0.0003352,3]
[367049641,1750637432294,-666.0,0.00033521,2]
[367049642,1750637432304,-203.0,0.00033562,9]
[367049643,1750637432315,-300.0,0.00033727,3]
[367049645,1750637432326,-115.10171819,0.00033727,2]
[367049659,1750637432548,-284.89828181,0.00033727,2]
[367049661,1750637432557,-300.0,0.00033728,3]
[367049663,1750637432567,-188.95062889,0.00033729,2]
[367049666,1750637432580,-104.52937111,0.00033729,2]
[367049668,1750637432591,-1000.0,0.00033729,2]
[367049670,1750637432601,-2320.57062869,0.00033785,2]
[367049672,1750637432614,-626.66937131,0.00033785,2]
[367049674,1750637432624,-677.24,0.00033809,120]
[367049675,1750637432634,-250.0,0.00033823,2]
[367049676,1750637432643,-210.49155708,0.000339,29]
[367049677,1750637432653,-167.0,0.00034,30]
[367049678,1750637432662,-269.06904761,0.00034247,7]
[367049679,1750637432674,-139.93095239,0.00034247,7]
[367049680,1750637432683,-150.0,0.00034323,2]
[367049681,1750637432693,-168.0,0.00034323,2]
[367049682,1750637432703,-228.38,0.00034608,2]
[367049683,1750637432712,-163.37,0.00034608,2]
[367049684,1750637432722,-384.01,0.00034608,2]
[367049685,1750637432732,-250.0,0.00034627,2]
[367049686,1750637432741,-2328.76356182,0.00034718,2]
[367049687,1750637432752,-1935.4172,0.0003472,2]
[367049688,1750637432763,-172.89603072,0.00034723,2]
[367049689,1750637432772,-155.12,0.00034726,2]
[367049690,1750637432782,-500.0,0.00034727,2]
[367049691,1750637432791,-2935.1865,0.00034727,2]
[367049692,1750637432801,-1000.0,0.00034727,2]
[367049693,1750637432811,-547.438,0.00034727,39]
[367049694,1750637432821,-2152.8619,0.0003473,2]
[367049695,1750637432831,-5000.0,0.00034731,2]
[367049696,1750637432840,-188.079484,0.00034741,7]
[367049697,1750637432851,-7662.26,0.0003481,7]
[367049698,1750637432860,-22619.5769557,0.0003481,2]
[367049699,1750637432870,-2328.7635618,0.00034811,2]
[367049700,1750637432880,-3527.5453239,0.00034812,2]
[367049701,1750637432893,-706.405,0.00034812,2]
[367049702,1750637432905,-10469.40784009,0.00034812,2]
[367049703,1750637432921,-483.93417998,0.00034812,2]
[367049704,1750637432932,-505.9360704,0.00034812,2]
[367049705,1750637432972,-610.57399903,0.00034812,2]
[367049706,1750637432985,-3055.33715716,0.00034812,2]
[367049707,1750637433017,-1770.78746014,0.00034812,2]
[367049715,1750637437958,-325.511704,0.00034812,2]
[367049716,1750637437969,-515.4242036,0.00034812,2]
[367049717,1750637437983,-9515.83989499,0.00034812,2]
[367049718,1750637438167,-13752.45107801,0.00034812,2]
[367049719,1750637438176,-150.52,0.00034812,2]
[367049720,1750637438185,-18398.02892199,0.00034813,2]
[367049793,1750637440194,-391.41753164,0.00034813,2]
[367049795,1750637440205,-993.16929965,0.00034813,2]
[367049797,1750637440216,-295.506,0.00034813,2]
[367049799,1750637440227,-42023.48177759,0.00034813,2]
[367049807,1750637440289,-1950.0,0.00034813,2]
[367049819,1750637440397,-500.0,0.00034813,2]
[367050110,1750637443049,-3307.12733613,0.00034813,2]
[367050115,1750637443060,-150.52,0.00034813,2]
[367050118,1750637443070,-208.79672613,0.00034813,2]
[367050119,1750637443080,-500.0,0.00034813,7]
[367050121,1750637443090,-433.04159119,0.00034813,7]
[367050124,1750637443100,-500.0,0.00034813,7]
[367050128,1750637443112,-500.0,0.00034813,2]
[367050130,1750637443121,-500.0,0.00034813,7]
[367050134,1750637443131,-500.0,0.00034813,7]
[367050137,1750637443141,-1159.38552032,0.00034813,7]
[367050140,1750637443151,-500.0,0.00034813,7]
[367050142,1750637443161,-500.0,0.00034813,7]
[367050145,1750637443171,-423.14169324,0.00034813,7]
[367050148,1750637443181,-500.0,0.00034813,2]
[367050152,1750637443192,-500.0,0.00034813,7]
[367050153,1750637443202,-500.0,0.00034813,7]
[367050156,1750637443212,-514.67413786,0.00034813,7]
[367050160,1750637443223,-500.0,0.00034813,7]
[367050163,1750637443233,-1159.38552032,0.00034813,7]
[367050166,1750637443243,-387.59537569,0.00034813,2]
[367050168,1750637443253,-500.0,0.00034813,7]
[367050171,1750637443263,-416.21173462,0.00034813,7]
[367050174,1750637443279,-500.0,0.00034813,7]
[367050178,1750637443290,-500.0,0.00034813,7]
[367050180,1750637443300,-500.0,0.00034813,7]
[367050181,1750637443310,-1159.38552032,0.00034813,7]
[367050184,1750637443322,-510.81986763,0.00034813,7]
[367050186,1750637443332,-1159.38552032,0.00034813,7]
[367050189,1750637443344,-1159.38552032,0.00034813,7]
[367050193,1750637443354,-1159.38552032,0.00034813,7]
[367050195,1750637443366,-1159.38552032,0.00034813,7]
[367050198,1750637443376,-1159.38552032,0.00034813,7]
[367050200,1750637443386,-1159.38552032,0.00034813,7]
[367050202,1750637443396,-1159.38552032,0.00034813,7]
[367050204,1750637443407,-1159.38552032,0.00034813,7]
[367050206,1750637443418,-1159.38552032,0.00034813,7]
[367050208,1750637443428,-1159.38552032,0.00034813,7]
[367050210,1750637443438,-1159.38552032,0.00034813,7]
[367050211,1750637443447,-1159.38552032,0.00034813,7]
[367050214,1750637443457,-1159.38552032,0.00034813,7]
[367050216,1750637443468,-1159.38552032,0.00034813,7]
[367050218,1750637443480,-1159.38552032,0.00034813,7]
[367050221,1750637443490,-1159.38552032,0.00034813,7]
[367050223,1750637443500,-1159.38552032,0.00034813,7]
[367050226,1750637443509,-1159.38552032,0.00034813,7]
[367050228,1750637443519,-1159.38552032,0.00034813,7]
[367050231,1750637443533,-1159.38552032,0.00034813,7]
[367050234,1750637443543,-1159.38552032,0.00034813,7]
[367050236,1750637443553,-1159.38552032,0.00034813,7]
[367050239,1750637443563,-1159.38552032,0.00034813,7]
[367050242,1750637443572,-1159.38552032,0.00034813,7]
[367050244,1750637443583,-1159.38552032,0.00034813,7]
[367050247,1750637443593,-1159.38552032,0.00034813,7]
[367050249,1750637443603,-1159.38552032,0.00034813,7]
[367050252,1750637443613,-1159.38552032,0.00034813,7]
[367050255,1750637443623,-45239.1539113,0.00034814,2]
[367050259,1750637443633,-20590.76440746,0.00034814,2]
[367050264,1750637443659,-5577.00933582,0.00034814,2]
[367050267,1750637443671,-1157.31054106,0.00034814,2]
[367051626,1750637819848,3666.1,0.00017461,2]
[367051629,1750637868232,158.75,0.00013699,2]
[367051648,1750638477880,5626.26229396,0.00014,2]
[367051649,1750638477903,10000.0,0.00014,2]
[367051650,1750638477926,10000.0,0.00014,2]
[367051651,1750638477947,10000.0,0.00014,2]
[367051652,1750638477969,10000.0,0.00014,2]
[367051653,1750638477991,10000.0,0.00014,2]
[367051654,1750638478013,10000.0,0.00014,2]
[367051655,1750638478037,10000.0,0.00014,2]
[367051656,1750638478059,10000.0,0.00014,2]
[367051657,1750638478082,10000.0,0.00014,2]
[367051658,1750638478104,10000.0,0.00014,2]
[367051659,1750638478125,10000.0,0.00014,2]
[367051660,1750638478148,10000.0,0.00014,2]
[367051661,1750638478169,10000.0,0.00014,2]
[367051662,1750638478194,10000.0,0.00014,2]
[367051663,1750638478216,10000.0,0.00014,2]
[367051664,1750638478591,10000.0,0.00014,2]
[367051665,1750638478612,10000.0,0.00014,2]
[367051666,1750638478633,10000.0,0.00014,2]
[367051667,1750638478657,10000.0,0.00014,2]
[367051668,1750638478678,10000.0,0.00014,2]
[367051670,1750638478702,10000.0,0.00014,2]
[367051671,1750638478723,10000.0,0.00014,2]
[367051672,1750638478747,10000.0,0.00014,2]
[367051673,1750638478768,10000.0,0.00014,2]
[367051674,1750638478790,10000.0,0.00014,2]
[367051675,1750638478812,10000.0,0.00014,2]
[367051676,1750638478833,10000.0,0.00014,2]
[367051677,1750638478853,10000.0,0.00014,2]
[367051678,1750638478874,10000.0,0.00014,2]
[367051679,1750638478894,10000.0,0.00014,2]
[367051680,1750638478916,10000.0,0.00014,2]
[367051681,1750638478936,10000.0,0.00014,2]
[367051682,1750638478957,10000.0,0.00014,2]
[367051683,1750638478977,10000.0,0.00014,2]
[367051684,1750638478999,10000.0,0.00014,2]
[367051685,1750638479022,10000.0,0.00014,2]
[367051686,1750638479043,10000.0,0.00014,2]
[367051687,1750638479063,10000.0,0.00014,2]
[367051688,1750638479084,10000.0,0.00014,2]
[367051689,1750638479104,10000.0,0.00014,2]
[367051690,1750638479125,10000.0,0.00014,2]
[367051691,1750638479145,10000.0,0.00014,2]
[367051692,1750638479166,10000.0,0.00014,2]
[367051693,1750638479186,10000.0,0.00014,2]
[367051694,1750638479207,10000.0,0.00014,2]
[367051695,1750638479227,10000.0,0.00014,2]
[367051696,1750638479249,10000.0,0.00014,2]
[367051697,1750638479269,10000.0,0.00014,2]
[367051698,1750638479289,10000.0,0.00014,2]
[367051699,1750638479310,10000.0,0.00014,2]
[367051700,1750638479331,10000.0,0.00014,2]
[367051701,1750638479351,10000.0,0.00014,2]
[367051702,1750638479372,10000.0,0.00014,2]
[367051703,1750638479393,10000.0,0.00014,2]
[367051704,1750638479420,72152.37770604,0.00014,2]
[367052335,1750638632065,-526.65,0.000199,2]
[367052336,1750638632074,-1180.2500001,0.00024657,30]
[367052337,1750638632086,-1819.7499999,0.00024657,30]
[367052338,1750638632095,-300.0,0.00024999,2]
[367052339,1750638632104,-456.0,0.00024999,2]
[367052340,1750638632115,-300.0,0.00024999,2]
[367052341,1750638632125,-1200.0,0.00024999,2]
[367052342,1750638632134,-4000.0,0.00025,2]
[367052343,1750638632143,-3000.0,0.00025,2]
[367052344,1750638632152,-155.12,0.000279,2]
[367052345,1750638632161,-216.64567611,0.000279,18]
[367052346,1750638632170,-216.64567611,0.000291,20]
[367052347,1750638632179,-216.64567611,0.000303,22]
[367052348,1750638632190,-489.999999,0.0003121,2]
[367052349,1750638632201,-216.64567611,0.000315,25]
[367052350,1750638632210,-834.42866044,0.00031908,2]
[367052351,1750638632219,-168.0,0.00031948,2]
[367052352,1750638632229,-168.0,0.00032564,2]
[367052353,1750638632238,-203.0,0.00032596,2]
[367052354,1750638632247,-216.64567611,0.000327,27]
[367052355,1750638632257,-200.0,0.00032957,2]
[367052356,1750638632267,-167.6,0.00033051,2]
[367052357,1750638632277,-659.62,0.0003309,120]
[367052358,1750638632288,-283.09,0.00033171,30]
[367052359,1750638632297,-156.47,0.00033257,2]
[367052360,1750638632306,-1354.62,0.00033313,2]
[367052361,1750638632316,-2324.09,0.00033338,120]
[367052363,1750638632325,-1000.0,0.0003341,2]
[367052365,1750638632334,-300.0,0.00033418,2]
[367052367,1750638632344,-1147.4,0.00033418,2]
[367052369,1750638632353,-666.0,0.00033446,2]
[367052370,1750638632362,-168.0,0.00033495,2]
[367052372,1750638632371,-156.92,0.000335,31]
[367052373,1750638632381,-381.66,0.0003353,2]
[367052374,1750638632390,-152.0,0.00033689,3]
[367052375,1750638632399,-168.0,0.00033727,2]
[367052377,1750638632409,-1846.65,0.00033728,2]
[367052379,1750638632419,-558.82,0.00033728,2]
[367052380,1750638632428,-295.86,0.00033784,2]
[367052381,1750638632438,-250.0,0.00033792,2]
[367052382,1750638632448,-165.74,0.00033814,2]
[367052383,1750638632458,-216.64567611,0.000339,29]
[367052385,1750638632467,-2110.0,0.00033938,2]
[367052386,1750638632476,-500.0,0.00033956,2]
[367052387,1750638632486,-168.0,0.00034077,7]
[367052388,1750638632497,-409.0,0.00034247,7]
[367052389,1750638632506,-772.82222043,0.00034313,2]
[367052390,1750638632515,-300.0,0.000344,12]
[367052391,1750638632524,-2110.0,0.00034438,2]
[367052392,1750638632534,-168.0,0.00034453,7]
[367052393,1750638632545,-437.95,0.00034469,39]
[367052394,1750638632554,-39019.38542382,0.0003447,2]
[367052395,1750638632612,-15136.84624422,0.0003447,2]
[367052396,1750638632622,-600.0,0.000345,12]
[367052397,1750638632631,-7001.27,0.0003452,7]
[367052398,1750638632640,-402.25319142,0.00034575,30]
[367052399,1750638632650,-900.0,0.000346,12]
[367052400,1750638632659,-772.82222044,0.00034601,2]
[367052401,1750638632669,-455.61,0.00034608,2]
[367052402,1750638632678,-355.09,0.00034608,2]
[367052403,1750638632689,-341.82,0.00034608,2]
[367052404,1750638632698,-150.0,0.00034608,2]
[367052405,1750638632707,-150.0,0.00034608,2]
[367052406,1750638632717,-455.61,0.00034608,2]
[367052407,1750638632726,-150.0,0.00034608,2]
[367052408,1750638632735,-355.09,0.00034608,2]
[367052409,1750638632748,-150.0,0.00034608,2]
[367052410,1750638632758,-300.0,0.00034614,2]
[367052411,1750638632767,-170.97,0.00034614,2]
[367052412,1750638632776,-150.0,0.00034614,2]
[367052413,1750638632786,-170.97,0.00034614,2]
[367052414,1750638632796,-455.61,0.00034614,2]
[367052415,1750638632806,-355.09,0.00034614,2]
[367052416,1750638632815,-150.0,0.00034614,2]
[367052417,1750638632825,-150.0,0.00034614,2]
[367052418,1750638632835,-170.97,0.00034614,2]
[367052419,1750638632844,-455.61,0.00034614,2]
[367052420,1750638632853,-355.09,0.00034614,2]
[367052421,1750638632863,-150.0,0.00034614,2]
[367052422,1750638632872,-170.97,0.00034614,2]
[367052423,1750638632881,-455.61,0.00034614,2]
[367052424,1750638632890,-150.0,0.00034614,2]
[367052425,1750638632899,-355.09,0.00034614,2]
[367052426,1750638632908,-2500.0,0.00034682,2]
[367052427,1750638632917,-224.19528033,0.00034689,2]
[367052428,1750638632927,-200.06699173,0.00034691,15]
[367052429,1750638632936,-172.89603072,0.00034699,2]
[367052430,1750638632945,-1200.0,0.000347,12]
[367052431,1750638632954,-1000.0,0.00034701,2]
[367052432,1750638632963,-159.9401035,0.00034702,2]
[367052433,1750638632973,-184.02992464,0.00034711,7]
[367052434,1750638632983,-402.25319142,0.00034712,30]
[367052435,1750638632992,-486.6743,0.00034714,2]
[367052436,1750638633002,-2241.9387,0.00034714,2]
[367052437,1750638633012,-1000.0,0.00034714,2]
[367052438,1750638633021,-259.15,0.00034757,2]
[367052439,1750638633032,-117502.4632228,0.0003478,120]
[367052440,1750638633042,-34973.53137182,0.00034781,2]
[367052441,1750638633140,-479.0,0.00034781,2]
[367052633,1750638640171,-434.86,0.00034771,2]
[367052635,1750638640180,-434.86,0.00034779,2]
[367052637,1750638640189,-268.46797051,0.00034781,7]
[367052639,1750638640199,-829.17502626,0.00034781,2]
[367052641,1750638640210,-317.2618496,0.00034781,2]
[367052646,1750638640241,-840.8243908,0.00034781,2]
[367052649,1750638640264,-6394.41860472,0.00034781,2]
[367052651,1750638640273,-490.0,0.00034782,7]
[367052653,1750638640282,-490.0,0.00034782,7]
[367052655,1750638640291,-490.0,0.00034782,7]
[367052657,1750638640301,-549.55,0.00034782,7]
[367052659,1750638640311,-490.0,0.00034782,7]
[367052661,1750638640320,-490.0,0.00034782,7]
[367052663,1750638640329,-1120.45,0.00034782,7]
[367052666,1750638640339,-490.0,0.00034782,7]
[367052668,1750638640348,-490.0,0.00034782,2]
[367052670,1750638640357,-572.11,0.00034782,7]
[367052672,1750638640366,-490.0,0.00034782,7]
[367052674,1750638640375,-500.0,0.00034782,2]
[367052676,1750638640384,-1674.63,0.00034782,7]
[367052678,1750638640393,-854.06,0.00034782,7]
[367052680,1750638640403,-490.0,0.00034782,7]
[367052682,1750638640412,-199.92184044,0.00034782,2]
[367052684,1750638640421,-490.0,0.00034782,7]
[367052685,1750638640430,-490.0,0.00034782,7]
[367052687,1750638640439,-1000.0,0.00034782,7]
[367052689,1750638640449,-35613.05716503,0.00034782,2]
[367052693,1750638640477,-8221.15407817,0.00034782,2]
[367052695,1750638640487,-21917.1056216,0.00034782,2]
[367052698,1750638640497,-150.51,0.00034782,2]
[367052700,1750638640507,-21917.1056216,0.00034783,2]
[367052702,1750638640517,-381.66,0.00034787,2]
[367052704,1750638640527,-150.51,0.00034789,2]
[367052706,1750638640536,-11966.13866979,0.0003479,2]
[367053280,1750638646010,-151.0,0.00032965,2]
[367053282,1750638646019,-255.15,0.00032965,2]
[367053284,1750638646028,-137.01,0.00034781,7]
[367053299,1750638646165,-1535.1,0.00034781,7]
[367053301,1750638646175,-2503.88866593,0.00034781,7]
[367053303,1750638646184,-334.53554085,0.00034781,7]
[367053305,1750638646193,-168.29712643,0.00034781,7]
[367053307,1750638646202,-500.0,0.00034781,7]
[367053309,1750638646212,-2503.88866593,0.00034781,7]
[367053311,1750638646221,-2503.88866593,0.00034781,7]
[367053313,1750638646230,-2503.88866593,0.00034781,7]
[367053315,1750638646239,-322.93732216,0.00034781,7]
[367053317,1750638646248,-2503.88866593,0.00034781,7]
[367053319,1750638646257,-2503.88866593,0.00034781,7]
[367053321,1750638646266,-2503.88866593,0.00034781,7]
[367053323,1750638646276,-2503.88866593,0.00034781,7]
[367053325,1750638646285,-2503.88866593,0.00034781,7]
[367053327,1750638646294,-2503.88866593,0.00034781,7]
[367053329,1750638646303,-2503.88866593,0.00034781,7]
[367053331,1750638646313,-2503.88866593,0.00034781,7]
[367053333,1750638646322,-2503.88866593,0.00034781,7]
[367053335,1750638646331,-2503.88866593,0.00034781,7]
[367053337,1750638646340,-2503.88866593,0.00034781,7]
[367053339,1750638646350,-2503.88866593,0.00034781,7]
[367053341,1750638646359,-2503.88866593,0.00034781,7]
[367053343,1750638646368,-2503.88866593,0.00034781,7]
[367053345,1750638646378,-1321.97506541,0.00034781,7]
[367053352,1750638646436,-1181.91360052,0.00034781,7]
[367053354,1750638646446,-1056.0863995,0.00034781,7]
[367053358,1750638646462,-384.77913641,0.00034781,7]
[367053526,1750639052428,158.75,0.00013699,2]
[367053760,1750639642449,514.0,0.00024658,120]
[367053774,1750639832243,-203.0,0.00029596,2]
[367053775,1750639832253,-172.86246256,0.00029596,2]
[367053776,1750639832263,-247.64909148,0.000307,2]
[367053777,1750639832411,-1752.35090852,0.000307,2]
[367053779,1750639832420,-256.50519976,0.00031252,2]
[367053781,1750639832430,-168.0,0.00031352,2]
[367053783,1750639832441,-172.86246256,0.00031352,2]
[367053785,1750639832450,-834.42866044,0.00031437,2]
[367053787,1750639832460,-203.0,0.00031767,6]
[367053789,1750639832469,-256.50519975,0.00032498,2]
[367053791,1750639832479,-156.47,0.00033046,2]
[367053793,1750639832489,-153.3,0.00033208,120]
[367053795,1750639832498,-250.0,0.00033241,2]
[367053797,1750639832508,-194.26,0.00033265,2]
[367053798,1750639832518,-1000.0,0.00033308,2]
[367053799,1750639832528,-1000.0,0.000334,2]
[367053800,1750639832537,-247.7,0.00033406,30]
[367053801,1750639832547,-1600.0,0.0003342,3]
[367053803,1750639832556,-500.0,0.00033421,120]
[367053805,1750639832567,-300.0,0.00033498,3]
[367053807,1750639832576,-400.0,0.00033498,2]
[367053809,1750639832587,-300.0,0.00033499,3]
[367053811,1750639832597,-5661.55994617,0.000335,30]
[367053813,1750639832609,-6939.53239457,0.000335,30]
[367053841,1750639832761,-450.0,0.000335,30]
[367053845,1750639832773,-2959.6271114,0.000335,30]
[367053848,1750639832784,-1693.6999999,0.000335,30]
[367053850,1750639832796,-843.86054796,0.000335,30]
[367053852,1750639832806,-155.1,0.000335,2]
[367053854,1750639832817,-156.93,0.000335,31]
[367053856,1750639832826,-666.0,0.00033507,2]
[367053858,1750639832836,-168.0,0.00033589,7]
[367053860,1750639832845,-317.13,0.00033626,2]
[367053862,1750639832854,-169.94,0.00033668,2]
[367053864,1750639832865,-295.84,0.00033671,2]
[367053866,1750639832875,-256.50519975,0.00033744,2]
[367053868,1750639832884,-455.61,0.00033792,2]
[367053870,1750639832894,-355.09,0.00033792,2]
[367053872,1750639832903,-355.09,0.00033792,2]
[367053874,1750639832912,-455.61,0.00033792,2]
[367053876,1750639832922,-151.0,0.00033823,2]
[367053878,1750639832932,-151.0,0.00033823,2]
[367053880,1750639832942,-151.0,0.00033823,2]
[367053882,1750639832951,-151.0,0.00033823,2]
[367053884,1750639832961,-225.0,0.00033823,2]
[367053886,1750639832970,-635.17190065,0.00033834,2]
[367053888,1750639832980,-350.36,0.00033843,37]
[367053890,1750639832990,-200.0,0.00033843,2]
[367053892,1750639833000,-11363.46024509,0.00033843,2]
[367053894,1750639833011,-1088.83,0.00033844,2]
[367053896,1750639833021,-999.99,0.00033844,2]
[367053898,1750639833032,-11831.69,0.00033844,10]
[367053900,1750639833043,-3687.42,0.00033844,2]
[367053902,1750639833054,-150.99,0.00033844,30]
[367053904,1750639833067,-75.01900988,0.00033844,2]
[367053921,1750639833222,-3490.00099012,0.00033844,2]
[367053923,1750639833232,-2870.74,0.00033844,2]
[367053925,1750639833242,-380.04028786,0.00033844,2]
[367053927,1750639833258,-594.4151086,0.00033844,2]
[367053929,1750639833270,-2024.14165359,0.00033844,2]
[367053941,1750639833373,-7001.39294995,0.00033844,2]
[367053943,1750639833383,-1683.97,0.00033844,2]
[367053945,1750639833393,-4976.05,0.00033844,2]
[367053947,1750639833403,-1138.85,0.00033844,2]
[367053949,1750639833413,-1550.89,0.00033844,2]
[367053951,1750639833423,-499.99,0.00033844,2]
[367053953,1750639833433,-9999.99,0.00033844,2]
[367053955,1750639833443,-455.61,0.00033878,2]
[367053957,1750639833453,-355.09,0.00033878,2]
[367053959,1750639833463,-216.57809222,0.000339,29]
[367053961,1750639833473,-203.0,0.00033939,10]
[367053963,1750639833483,-455.61,0.00033978,2]
[367053965,1750639833492,-150.0,0.00033978,2]
[367053967,1750639833501,-355.09,0.00033978,2]
[367053969,1750639833511,-170.97,0.00033978,2]
[367053971,1750639833521,-152.87,0.00034,7]
[367053973,1750639833531,-500.0,0.00034181,120]
[367053975,1750639833541,-409.0,0.00034247,7]
[367053977,1750639833550,-416.627316,0.00034327,16]
[367053979,1750639833562,-300.0,0.000344,12]
[367053981,1750639833572,-2110.0,0.00034438,2]
[367053983,1750639833583,-1035.88821,0.0003444,2]
[367053985,1750639833592,-300.0,0.00034487,120]
[367053987,1750639833602,-250.0,0.00034487,2]
[367053989,1750639833612,-8151.62,0.0003449,7]
[367053991,1750639833622,-700.0,0.000345,12]
[367053993,1750639833633,-216.57809213,0.00034567,31]
[367053995,1750639833643,-3348.99123849,0.00034596,2]
[367053997,1750639833653,-1100.0,0.000346,12]
[367053999,1750639833663,-8151.61,0.000346,7]
[367054001,1750639833674,-455.61,0.00034614,2]
[367054003,1750639833683,-355.09,0.00034614,2]
[367054005,1750639833692,-455.61,0.00034614,2]
[367054007,1750639833702,-355.09,0.00034614,2]
[367054009,1750639833713,-911.05,0.00034614,2]
[367054011,1750639833724,-355.09,0.00034614,2]
[367054013,1750639833735,-452.16,0.00034614,2]
[367054015,1750639833745,-710.05,0.00034614,2]
[367054016,1750639833755,-355.09,0.00034614,2]
[367054018,1750639833766,-355.09,0.00034614,2]
[367054021,1750639833777,-205.83489303,0.00034614,2]
[367054023,1750639833788,-500.0,0.00034614,2]
[367054024,1750639833798,-500.0,0.00034614,2]
[367054026,1750639833808,-150.0,0.00034614,2]
[367054028,1750639833819,-839.0,0.00034614,2]
[367054030,1750639833830,-150.0,0.0003462,2]
[367054032,1750639833841,-301.19,0.0003462,2]
[367054034,1750639833851,-163.6,0.0003462,2]
[367054036,1750639833861,-163.6,0.0003462,2]
[367054038,1750639833871,-163.6,0.0003462,2]
[367054040,1750639833882,-165.73,0.00034636,2]
[367054042,1750639833892,-3348.99123843,0.00034641,2]
[367054044,1750639833903,-500.0,0.00034641,2]
[367054046,1750639833913,-521.14021212,0.00034641,2]
[367054048,1750639833924,-839.0,0.00034641,2]
[367054050,1750639833934,-538.89194357,0.00034642,2]
[367054052,1750639833945,-168.08565324,0.00034651,2]
[367054054,1750639833955,-5506.5539,0.00034655,2]
[367054056,1750639833965,-500.0,0.00034669,2]
[367054058,1750639833975,-839.0,0.00034669,2]
[367054060,1750639833985,-500.0,0.00034672,2]
[367054062,1750639833995,-150.0,0.00034672,2]
[367054064,1750639834005,-150.0,0.00034672,2]
[367054066,1750639834015,-500.0,0.00034672,2]
[367054068,1750639834026,-500.0,0.00034672,2]
[367054070,1750639834036,-500.0,0.00034672,2]
[367054072,1750639834046,-242.20187904,0.0003468,7]
[367054074,1750639834056,-1000.0,0.00034682,2]
[367054076,1750639834068,-867.7282,0.00034682,2]
[367054079,1750639834078,-500.0,0.00034682,2]
[367054081,1750639834088,-1307.0249,0.00034682,2]
[367054083,1750639834099,-3348.99123843,0.00034687,2]
[367054085,1750639834109,-1123.89794242,0.00034688,30]
[367054087,1750639834118,-23592.3787,0.00034689,2]
[367054089,1750639834128,-500.0,0.00034696,2]
[367054091,1750639834138,-839.0,0.00034696,2]
[367054093,1750639834152,-500.0,0.00034699,2]
[367054103,1750639834255,-150.0,0.00034699,2]
[367054105,1750639834266,-150.0,0.00034699,2]
[367054107,1750639834276,-500.0,0.00034699,2]
[367054109,1750639834286,-500.0,0.00034699,2]
[367054111,1750639834296,-600.0,0.00034699,2]